fUSD/lending_fUSD_20240201
["ID","MTS","AMOUNT","RATE_DAILY","PERIOD"]
[313111463,1706758248589,-1033.62,0.00033424,2]
[313111464,1706758248598,-500.0,0.00033424,2]
[313111465,1706758248607,-500.0,0.00033424,2]
[313111466,1706758248616,-2525.91,0.00033424,2]
[313111467,1706758248625,-500.0,0.00033424,2]
[313111468,1706758248635,-505.1,0.00033424,2]
[313111469,1706758248644,-1131.95,0.00033424,2]
[313111470,1706758248654,-507.87,0.00033424,2]
[313111471,1706758248663,-505.59,0.00033424,2]
[313111472,1706758248672,-500.0,0.00033424,2]
[313111473,1706758248681,-707.85,0.00033424,2]
[313111474,1706758248690,-500.0,0.00033424,2]
[313111475,1706758248700,-500.0,0.00033424,2]
[313111476,1706758248709,-500.0,0.00033424,2]
[313111477,1706758248718,-638.92,0.00033424,2]
[313111478,1706758248728,-990.69,0.00033424,2]
[313111479,1706758248738,-1000.0,0.00033424,7]
[313111480,1706758248747,-1436.59,0.00033424,2]
[313111481,1706758248756,-500.0,0.00033424,2]
[313111482,1706758248765,-500.0,0.00033424,2]
[313111483,1706758248775,-500.0,0.00033424,2]
[313111484,1706758248784,-1465.41,0.00033424,2]
[313111485,1706758248794,-500.0,0.00033424,2]
[313111486,1706758248803,-594.63,0.00033424,2]
[313111487,1706758248812,-500.0,0.00033424,2]
[313111488,1706758248821,-500.0,0.00033424,2]
[313111489,1706758248830,-500.0,0.00033424,2]
[313111490,1706758248839,-2439.7,0.00033424,2]
[313111491,1706758248848,-547.82,0.00033424,2]
[313111492,1706758248859,-723.87,0.00033424,2]
[313111493,1706758248871,-500.0,0.00033424,2]
[313111494,1706758248880,-1003.38,0.00033424,2]
[313111495,1706758248889,-500.0,0.00033424,2]
[313111496,1706758248898,-512.75,0.00033424,2]
[313111497,1706758248908,-551.31,0.00033424,2]
[313111498,1706758248917,-562.66,0.00033424,2]
[313111499,1706758248927,-603.85,0.00033424,2]
[313111500,1706758248935,-500.0,0.00033424,2]
[313111501,1706758248945,-500.0,0.00033424,2]
[313111502,1706758248955,-509.51,0.00033424,2]
[313111503,1706758248964,-500.0,0.00033424,2]
[313111504,1706758248973,-500.0,0.00033424,2]
[313111505,1706758248982,-500.0,0.00033424,2]
[313111506,1706758248991,-500.0,0.00033424,2]
[313111507,1706758249000,-937.38,0.00033424,2]
[313111508,1706758249010,-500.0,0.00033424,2]
[313111509,1706758249019,-1297.24,0.00033424,2]
[313111510,1706758249029,-556.79,0.00033424,2]
[313111511,1706758249038,-590.52,0.00033424,2]
[313111512,1706758249047,-500.0,0.00033424,2]
[313111513,1706758249055,-500.0,0.00033424,2]
[313111514,1706758249064,-500.0,0.00033424,2]
[313111515,1706758249073,-2053.31,0.00033424,2]
[313111516,1706758249082,-1809.61,0.00033424,5]
[313111517,1706758249092,-500.0,0.00033424,2]
[313111518,1706758249100,-500.0,0.00033424,2]
[313111519,1706758249109,-500.0,0.00033424,2]
[313111520,1706758249119,-500.0,0.00033424,2]
[313111521,1706758249128,-500.0,0.00033424,2]
[313111522,1706758249136,-1385.03,0.00033424,2]
[313111523,1706758249145,-500.0,0.00033424,2]
[313111524,1706758249155,-719.27,0.00033424,2]
[313111525,1706758249164,-500.0,0.00033424,2]
[313111526,1706758249173,-500.0,0.00033424,2]
[313111527,1706758249182,-941.22,0.00033424,2]
[313111528,1706758249191,-500.0,0.00033424,2]
[313111529,1706758249200,-701.72,0.00033424,2]
[313111530,1706758249209,-1262.78,0.00033424,2]
[313111531,1706758249220,-1048.51,0.00033424,2]
[313111532,1706758249229,-852.85,0.00033424,2]
[313111533,1706758249238,-668.09,0.00033424,2]
[313111534,1706758249246,-524.0,0.00033424,2]
[313111535,1706758249255,-615.25,0.00033424,2]
[313111536,1706758249264,-500.0,0.00033424,2]
[313111537,1706758249273,-529.78,0.00033424,2]
[313111538,1706758249282,-1249.59,0.00033424,2]
[313111539,1706758249292,-675.87,0.00033424,2]
[313111540,1706758249301,-500.0,0.00033424,2]
[313111541,1706758249310,-500.0,0.00033424,2]
[313111542,1706758249319,-500.0,0.00033424,2]
[313111543,1706758249328,-500.0,0.00033424,2]
[313111544,1706758249337,-16092.64,0.00033424,2]
[313111545,1706758249347,-500.0,0.00033424,2]
[313111546,1706758249357,-431.14042672,0.00033424,2]
[313111547,1706758249366,-910.09,0.00033424,2]
[313111548,1706758249375,-500.0,0.00033424,2]
[313111549,1706758249385,-500.0,0.00033424,2]
[313111550,1706758249397,-530.44,0.00033424,2]
[313111551,1706758249406,-552.93,0.00033424,2]
[313111552,1706758249416,-631.73,0.00033424,2]
[313111553,1706758249425,-500.0,0.00033424,2]
[313111554,1706758249435,-500.0,0.00033424,2]
[313111555,1706758249444,-500.0,0.00033424,2]
[313111556,1706758249453,-1276.87,0.00033424,2]
[313111557,1706758249464,-1897.89,0.00033424,2]
[313111558,1706758249473,-500.0,0.00033424,2]
[313111559,1706758249483,-1146.25,0.00033424,2]
[313111560,1706758249491,-1023.52,0.00033424,2]
[313111561,1706758249501,-1076.2,0.00033424,2]
[313111562,1706758249510,-500.0,0.00033424,2]
[313111563,1706758249519,-500.0,0.00033424,2]
[313111564,1706758249529,-234.0201,0.00033448,4]
[313111565,1706758249537,-176.8,0.00033528,2]
[313111566,1706758249546,-1518.5733004,0.00033548,2]
[313111567,1706758249556,-234.0201,0.00033548,4]
[313111568,1706758249565,-234.0201,0.00033648,4]
[313111569,1706758249574,-1000.0,0.0003365,2]
[313111570,1706758249583,-234.0201,0.00033748,4]
[313111571,1706758249592,-234.0201,0.00033848,4]
[313111572,1706758249601,-1518.5733004,0.00033858,2]
[313111573,1706758249610,-233.43409916,0.00033872,6]
[313111574,1706758249619,-156.17290439,0.00033872,2]
[313111575,1706758249628,-158.81514118,0.00033872,2]
[313111576,1706758249637,-199.60902907,0.00033872,2]
[313111577,1706758249646,-2700.40070769,0.00033872,2]
[313111578,1706758249655,-7.4675638,0.00033948,4]
[313111581,1706758300318,-796.43626905,0.00032876,14]
[313111582,1706758300344,-1101.5,0.00032876,7]
[313111583,1706758300368,-1052.59750047,0.00033422,4]
[313111584,1706758300392,-7803.03250074,0.00033422,4]
[313111585,1706758300417,-1101.5,0.00033424,7]
[313111586,1706758300442,-496.32107671,0.00033592,6]
[313111587,1706758300467,-226.5525362,0.00033948,4]
[313111588,1706758300492,-496.32107671,0.0003396,6]
[313111589,1706758300515,-14184.21436118,0.0003397,4]
[313111590,1706758300538,-239.61839418,0.0003397,4]
[313111591,1706758300562,-5013.17469583,0.0003397,4]
[313111592,1706758300586,-845.0,0.00033972,5]
[313111593,1706758300609,-759.35833514,0.00033972,14]
[313111594,1706758308877,767.0,0.00033972,5]
[313111595,1706758312196,3833.27429795,0.0003397,4]
[313111596,1706758313058,239.61839418,0.0003397,4]
[313111597,1706758317736,-156.25186863,0.00033972,3]
[313111598,1706758317761,-67088.22869303,0.00033972,3]
[313111601,1706758989233,-178.34454767,0.00023499,2]
[313111602,1706758989254,-248.65545233,0.000235,2]
[313111603,1706758998873,-0.28454767,0.000235,2]
[313111604,1706758998893,-349.71545233,0.00025,3]
[313111611,1706759431984,-0.28454767,0.00025,3]
[313111614,1706759431994,-178.34454767,0.00026999,2]
[313111616,1706759432004,-400.0,0.00027,3]
[313111617,1706759432013,-209.0,0.00028387,2]
[313111619,1706759432022,-450.0,0.00029,3]
[313111622,1706759432032,-437.75,0.000295,2]
[313111623,1706759432041,-500.0,0.0003,2]
[313111626,1706759432050,-155.0,0.0003,2]
[313111627,1706759432059,-500.0,0.00031,3]
[313111630,1706759432068,-36.67131665,0.00031183,2]
[313111675,1706759437643,-363.32868335,0.00031183,2]
[313111676,1706759437653,-16.89126629,0.00031252,2]
[313111677,1706759437758,-17559.96923057,0.00031252,2]
[313111678,1706759437770,-370.85509106,0.00031252,2]
[313111679,1706759437782,-5952.28441208,0.00031252,2]
[313111680,1706759437791,-468.59975481,0.00031387,2]
[313111893,1706759440200,-312.52609998,0.00031387,2]
[313111904,1706759440291,-183.26414521,0.00031387,2]
[313111906,1706759440301,-250.0,0.00031506,2]
[313111908,1706759440309,-250.0,0.00031525,2]
[313111909,1706759440320,-209.0,0.00031548,7]
[313111912,1706759440331,-2000.0,0.00031562,2]
[313111914,1706759440341,-1084.66,0.0003158,2]
[313111916,1706759440350,-179.14,0.0003158,2]
[313111918,1706759440360,-150.0,0.00031588,2]
[313111920,1706759440369,-600.0,0.00031665,2]
[313111922,1706759440378,-437.75,0.00031764,2]
[313111924,1706759440387,-3117.76344421,0.00031892,2]
[313111926,1706759440396,-52439.11675612,0.00031894,2]
[313111933,1706759440460,-888.49130964,0.00031894,2]
[313111936,1706759440472,-904.10183854,0.00031894,2]
[313112000,1706759441072,-2961.18,0.00031803,2]
[313112002,1706759441082,-3158.26966833,0.00031894,2]
[313112004,1706759441095,-3245.42104873,0.00031894,2]
[313112008,1706759441119,-558.89350208,0.00031894,2]
[313112157,1706759442677,-268.986,0.0003,2]
[313112164,1706759442735,-231.014,0.0003,2]
[313112166,1706759442744,-3896.61799076,0.00031894,2]
[313112169,1706759442756,-369.08900709,0.00031894,2]
[313112171,1706759442769,-465.15169898,0.00031894,2]
[313112174,1706759442854,-1909.59501353,0.00031894,2]
[313112175,1706759442969,-1456.20448539,0.00031894,2]
[313112190,1706759445963,-239.61839418,0.00031893,4]
[313112192,1706759446181,-155.0,0.00031893,2]
[313112193,1706759446191,-32.98588594,0.00031894,2]
[313112194,1706759446294,-11465.21931276,0.00031894,2]
[313112195,1706759446305,-512.67,0.00031894,2]
[313112196,1706759446317,-1412.77682081,0.00031894,2]
[313112197,1706759538542,496.11288116,0.00021848,2]
[313112198,1706759578319,155.29737754,0.00021848,2]
[313112199,1706759581286,363.42044362,0.00021848,2]
[313112200,1706759596309,155.33168313,0.00021848,2]
[313112201,1706759599039,1100.85350938,0.00021848,2]
[313112202,1706759617037,310.81339877,0.00021848,2]
[313112203,1706760003101,150.0,0.00021848,2]
[313112204,1706760003304,150.0,0.00021848,2]
[313112205,1706760003771,248.77912917,0.00021848,2]
[313112206,1706760079722,529.86,0.00021414,2]
[313112207,1706760149844,362.157587,0.00021414,2]
[313112208,1706760181839,362.157587,0.00021414,2]
[313112209,1706760203857,362.157587,0.00021414,2]
[313112210,1706760223867,346.36851023,0.00021414,2]
[313112211,1706760246349,170.0,0.00022501,2]
[313112212,1706760262350,176.8,0.00022,2]
[313112214,1706760296121,2476.89,0.00022456,2]
[313112218,1706760343687,248.69,0.00022308,2]
[313112219,1706760365092,320.0,0.00022308,2]
[313112220,1706760408650,200.0,0.00022308,2]
[313112223,1706760472131,475.27,0.00022308,2]
[313112224,1706760527891,168.19,0.00022302,2]
[313112226,1706760549181,200.0,0.0002226,2]
[313112227,1706760566678,503.36,0.00020325,2]
[313112228,1706760570921,2071.68,0.00022234,2]
[313112229,1706760602217,2000.0,0.00022274,2]
[313112234,1706760633386,-155.78553359,0.00022515,2]
[313112235,1706760633396,-155.0,0.00022516,2]
[313112236,1706760633407,-250.0,0.00022534,2]
[313112237,1706760633418,-176.8,0.00022548,2]
[313112238,1706760633428,-176.45,0.00022586,2]
[313112239,1706760633437,-503.36,0.00022589,2]
[313112240,1706760633447,-1854.34994669,0.0002277,2]
[313112241,1706760633459,-15615.07229434,0.0002277,2]
[313112242,1706760633470,-307.51494231,0.0002277,2]
[313112243,1706760633504,-906.10839181,0.0002277,2]
[313112244,1706760633517,-495.49198268,0.0002277,2]
[313112245,1706760633528,-274.16412082,0.0002277,2]
[313112246,1706760633567,-4234.21316339,0.0002277,2]
[313112247,1706760633579,-65321.40500875,0.0002277,2]
[313112248,1706760633590,-356.75494621,0.0002277,2]
[313112249,1706760633626,-500.0,0.0002277,2]
[313112250,1706760633639,-420.59609676,0.0002277,2]
[313112252,1706760633688,-4668.71995178,0.0002277,2]
[313112254,1706760633700,-1426.73096217,0.0002277,2]
[313112276,1706760638989,-496.18273898,0.00022515,2]
[313112278,1706760639001,-229.63290014,0.0002277,2]
[313112280,1706760639013,-741.27723955,0.0002277,2]
[313112282,1706760639024,-420.8888349,0.0002277,2]
[313112285,1706760639037,-91231.0792177,0.0002277,2]
[313112287,1706760639048,-222.84629183,0.00022897,2]
[313112289,1706760639058,-34184.1972,0.00022898,2]
[313112291,1706760639067,-1551.00336476,0.00022899,2]
[313112293,1706760639077,-499.99,0.00022899,2]
[313112295,1706760639087,-156.2925521,0.000229,2]
[313112296,1706760639096,-17765.71558538,0.0002293,2]
[313112297,1706760639106,-536.89842804,0.0002293,2]
[313112298,1706760639116,-106029.10108868,0.00022998,2]
[313112299,1706760639125,-4685.99232253,0.00022999,2]
[313112300,1706760639134,-250.0,0.00022999,2]
[313112301,1706760639143,-503597.58548237,0.00023,2]
[313112302,1706760639152,-631126.19401796,0.00023,2]
[313112303,1706760639165,-205.07,0.00023085,2]
[313112304,1706760639174,-176.8,0.00023096,2]
[313112305,1706760639183,-7236.062973,0.0002313,2]
[313112306,1706760639193,-250.0,0.00023273,2]
[313112307,1706760639202,-9564.74,0.00023273,2]
[313112308,1706760639211,-475.27,0.00023423,2]
[313112309,1706760639221,-150.0,0.0002353,2]
[313112310,1706760639230,-250.0,0.00023547,2]
[313112311,1706760639240,-156.73240992,0.0002355,2]
[313112312,1706760639250,-176.8,0.00023644,2]
[313112313,1706760639259,-286.44,0.00023654,2]
[313112314,1706760639268,-179.14,0.00023731,2]
[313112315,1706760639278,-250.0,0.00023821,2]
[313112316,1706760639287,-2071.68,0.00023878,2]
[313112317,1706760639297,-156.73240992,0.00023957,2]
[313112318,1706760639307,-4254.23774642,0.00023995,2]
[313112319,1706760639316,-216447.87457225,0.00023999,2]
[313112320,1706760639326,-259.80245527,0.00024095,2]
[313112322,1706760639335,-176.8,0.00024192,2]
[313112324,1706760639344,-17765.71558534,0.00024282,2]
[313112326,1706760639354,-156.73240992,0.00024363,2]
[313112328,1706760639363,-3371.53,0.00024384,2]
[313112330,1706760639372,-680.0,0.00024461,2]
[313112332,1706760639382,-475.27,0.00024539,2]
[313112333,1706760639391,-160.0,0.00024549,2]
[313112334,1706760639401,-250.0,0.00024658,2]
[313112335,1706760639411,-176.8,0.0002474,2]
[313112336,1706760639421,-185.24,0.00024756,2]
[313112337,1706760639432,-156.73240992,0.0002477,2]
[313112338,1706760639442,-156.2925521,0.00024829,2]
[313112339,1706760639452,-503.36,0.00024853,2]
[313112340,1706760639463,-856.32526821,0.00025,2]
[313112341,1706760639475,-2058.09076621,0.00025,2]
[313112342,1706760639486,-159.19838367,0.00025,2]
[313112343,1706760639497,-202.63807571,0.00025,2]
[313112344,1706760639507,-1588.56278984,0.00025,2]
[313112346,1706760639517,-304.42296087,0.00025,2]
[313112348,1706760639527,-1253.06290056,0.00025,2]
[313112350,1706760639537,-208.46122201,0.00025,4]
[313112352,1706760639547,-422.40472177,0.00025,2]
[313112354,1706760639557,-936.38551018,0.00025,2]
[313112356,1706760639566,-1904.97840411,0.00025,2]
[313112358,1706760639575,-1551.00336472,0.00025028,2]
[313112360,1706760639585,-320.0,0.00025096,2]
[313112362,1706760639594,-156.73240992,0.00025176,2]
[313112364,1706760639603,-167.5,0.00025276,2]
[313112366,1706760639613,-176.8,0.00025288,2]
[313112368,1706760639625,-209.0,0.00025387,2]
[313112370,1706760639635,-2071.68,0.00025522,2]
[313112372,1706760639645,-156.73240992,0.00025583,2]
[313112374,1706760639654,-160.0,0.00025591,2]
[313112376,1706760639665,-17765.71558534,0.00025634,2]
[313112378,1706760639675,-475.27,0.00025654,2]
[313112380,1706760639684,-176.8,0.00025836,2]
[313112382,1706760639693,-156.73240992,0.00025989,2]
[313112384,1706760639702,-494.59,0.00026027,2]
[313112386,1706760639712,-150.0,0.00026079,2]
[313112388,1706760639723,-179.14,0.00026104,2]
[313112390,1706760639732,-167.5,0.00026319,2]
[313112392,1706760639741,-176.8,0.00026384,2]
[313112394,1706760639751,-156.73240992,0.00026396,2]
[313112396,1706760639760,-160.0,0.00026633,2]
[313112398,1706760639769,-536.898428,0.00026648,2]
[313112400,1706760639779,-156.2925521,0.00026757,2]
[313112402,1706760639788,-475.27,0.0002677,2]
[313112404,1706760639797,-156.73240992,0.00026802,2]
[313112406,1706760639806,-382.05930895,0.000269,2]
[313112408,1706760639817,-232.28600768,0.00026932,2]
[313112410,1706760639826,-17765.71558534,0.00026985,2]
[313112412,1706760639835,-417.44945802,0.00027,2]
[313112414,1706760639844,-503.36,0.00027117,2]
[313112416,1706760639853,-1551.00336472,0.00027156,3]
[313112418,1706760639863,-2071.68,0.00027166,2]
[313112420,1706760639871,-156.73240992,0.00027209,2]
[313112422,1706760639880,-167.5,0.00027362,2]
[313112424,1706760639889,-155.0,0.00027397,2]
[313112426,1706760639898,-505.57,0.00027397,2]
[313112428,1706760639907,-2500.0,0.00027397,3]
[313112430,1706760639917,-195.8,0.00027397,2]
[313112432,1706760639925,-250.0,0.000274,2]
[313112434,1706760639934,-165.75,0.00027472,2]
[313112436,1706760639944,-12946.66436041,0.000275,2]
[313112438,1706760639953,-680.0,0.00027519,2]
[313112440,1706760639962,-505.57,0.00027614,2]
[313112442,1706760639971,-156.73240992,0.00027615,2]
[313112444,1706760639981,-160.0,0.00027675,2]
[313112446,1706760639989,-505.57,0.0002783,2]
[313112448,1706760639999,-320.0,0.00027885,2]
[313112451,1706760640008,-691.09338038,0.00028,2]
[313112453,1706760640017,-156.73240992,0.00028022,2]
[313112455,1706760640026,-505.57,0.00028046,2]
[313112457,1706760640036,-195.8,0.0002811,2]
[313112459,1706760640045,-505.57,0.00028262,2]
[313112461,1706760640054,-17765.71558534,0.00028337,2]
[313112462,1706760640063,-167.5,0.00028405,2]
[313112465,1706760640073,-156.73240992,0.00028428,2]
[313112467,1706760640082,-179.14,0.00028477,2]
[313112469,1706760640091,-505.57,0.00028479,2]
[313112471,1706760640100,-156.2925521,0.00028686,2]
[313112473,1706760640111,-505.57,0.00028695,2]
[313112474,1706760640120,-160.0,0.00028717,2]
[313112476,1706760640130,-155.0,0.00028767,2]
[313112478,1706760640139,-2071.68,0.00028809,2]
[313112480,1706760640148,-195.8,0.00028822,2]
[313112482,1706760640157,-156.73240992,0.00028835,2]
[313112484,1706760640167,-209.0,0.00028848,7]
[313112486,1706760640176,-19191.13780264,0.000289,2]
[313112488,1706760640186,-505.57,0.00028911,2]
[313112490,1706760640195,-505.57,0.00029128,2]
[313112492,1706760640204,-156.73240992,0.00029241,2]
[313112494,1706760640214,-1551.00336472,0.00029285,4]
[313112496,1706760640223,-505.57,0.00029344,2]
[313112498,1706760640233,-503.36,0.00029381,2]
[313112500,1706760640242,-167.5,0.00029448,2]
[313112502,1706760640252,-509.2097551,0.00029495,2]
[313112504,1706760640261,-155.56936349,0.000295,3]
[313112506,1706760640270,-505.57,0.0002956,2]
[313112508,1706760640279,-156.73240992,0.00029648,2]
[313112510,1706760640289,-17765.71558534,0.00029689,2]
[313112513,1706760640298,-160.0,0.00029758,2]
[313112515,1706760640307,-505.57,0.00029777,2]
[313112517,1706760640316,-176.02968704,0.000298,2]
[313112519,1706760640325,-71301.78178387,0.000299,2]
[313112520,1706760640334,-257.72,0.000299,7]
[313112522,1706760640344,-700.0,0.0002998,5]
[313112524,1706760640353,-505.57,0.00029993,2]
[313112526,1706760640363,-155.0,0.0003,2]
[313112529,1706760640373,-1821.3567041,0.0003,4]
[313112531,1706760640383,-161.18177704,0.0003,4]
[313112533,1706760640393,-361.24860726,0.0003,4]
[313112535,1706760640402,-9669.73208063,0.0003,2]
[313112537,1706760640413,-4884.25961146,0.0003,4]
[313112539,1706760640422,-589.89356993,0.0003,2]
[313112541,1706760640431,-700.99024461,0.0003,2]
[313112543,1706760640441,-110899.96611854,0.0003,4]
[313112545,1706760640450,-375.57296171,0.0003,2]
[313112547,1706760640459,-252.85143904,0.0003,4]
[313112548,1706760640469,-359.91988601,0.0003,2]
[313112550,1706760640478,-69988.93647813,0.0003,2]
[313112553,1706760640487,-312.61532307,0.0003,2]
[313112555,1706760640497,-500.0,0.0003,2]
[313112556,1706760640506,-130189.0,0.0003,4]
[313112559,1706760640516,-2861.0,0.0003,4]
[313112561,1706760640525,-1000.0,0.0003,2]
[313112563,1706760640535,-204.0,0.0003,2]
[313112565,1706760640544,-257.72,0.00030037,7]
[313112567,1706760640554,-1209.74784795,0.000301,2]
[313112569,1706760640563,-152.1,0.00030137,2]
[313112571,1706760640573,-257.72,0.00030174,7]
[313112572,1706760640582,-505.57,0.00030209,2]
[313112574,1706760640591,-329.18345255,0.00030299,2]
[313112576,1706760640600,-257.72,0.00030311,7]
[313112578,1706760640610,-536.898428,0.00030365,2]
[313112580,1706760640620,-4254.23774642,0.00030397,2]
[313112582,1706760640629,-505.57,0.00030425,2]
[313112584,1706760640642,-306.59715643,0.00030448,7]
[313112586,1706760640651,-2071.68,0.00030453,2]
[313112588,1706760640661,-680.0,0.00030577,2]
[313112589,1706760640670,-156.2925521,0.00030614,2]
[313112591,1706760640680,-505.57,0.00030642,2]
[313112593,1706760640689,-320.0,0.00030673,2]
[313112595,1706760640698,-152.1,0.00030822,2]
[313112597,1706760640708,-505.57,0.00030858,2]
[313112599,1706760640717,-1290.47775034,0.00030863,2]
[313112600,1706760640726,-15964.31969646,0.000309,2]
[313112602,1706760640735,-406.14,0.00030986,2]
[313112604,1706760640745,-258.92777953,0.00031,4]
[313112606,1706760640754,-7631.61020856,0.00031,2]
[313112608,1706760640763,-371.07036043,0.00031,2]
[313112610,1706760640772,-17765.71558534,0.00031041,2]
[313112611,1706760640781,-1290.47775034,0.00031052,2]
[313112613,1706760640790,-505.57,0.00031074,2]
[313112615,1706760640799,-3094.0,0.000311,3]
[313112617,1706760640808,-6246.0,0.000311,3]
[313112619,1706760640817,-505.57,0.00031291,2]
[313112620,1706760640826,-1290.47775034,0.00031383,2]
[313112622,1706760640835,-158.80447005,0.000314,30]
[313112624,1706760640844,-1551.00336472,0.00031414,5]
[313112626,1706760640853,-5016.92060008,0.000315,14]
[313112628,1706760640863,-500.0,0.000315,2]
[313112630,1706760640872,-2988.5708014,0.000315,3]
[313112657,1706760641154,-359.49724445,0.000315,3]
[313112661,1706760641181,-415.5129,0.000315,3]
[313112785,1706760642850,-524.28678313,0.00022654,2]
[313112786,1706760642906,-352.73851809,0.00022654,2]
[313112787,1706760643286,-398.52435713,0.00022654,2]
[313112788,1706760643343,-13954.98034165,0.00022654,2]
[313112789,1706760643353,-12818.26704759,0.000315,3]
[313112790,1706760643362,-152.1,0.00031507,2]
[313112791,1706760643371,-505.57,0.00031507,2]
[313112792,1706760643380,-150.0,0.00031522,2]
[313112793,1706760643390,-1290.47775034,0.00031582,2]
[313112794,1706760643399,-194.55,0.00031644,2]
[313112795,1706760643409,-180.0,0.00031644,2]
[313112796,1706760643420,-503.36,0.00031645,2]
[313112797,1706760643429,-602.93729013,0.000318,2]
[313112798,1706760643438,-150.78203027,0.000318,2]
[313112799,1706760643448,-150.80000564,0.000318,2]
[313112800,1706760643458,-1066.56397062,0.000318,3]
[313112801,1706760643467,-382.05930895,0.00031849,2]
[313112802,1706760643674,-216.61612243,0.00031892,4]
[313112803,1706760643685,-207.10395967,0.00031893,4]
[313112804,1706760643695,-167.64878724,0.00031893,4]
[313112805,1706760643703,-5510.72089955,0.00031893,4]
[313112806,1706760643714,-222.85985053,0.00031893,4]
[313112807,1706760643724,-161.99866004,0.00031894,4]
[313112808,1706760643733,-686.18093297,0.00031894,4]
[313112809,1706760643742,-200.0,0.00031894,2]
[313112810,1706760643752,-1595.60096828,0.00031894,2]
[313112811,1706760643761,-3000.0,0.00031894,2]
[313112812,1706760643771,-156.72602043,0.00032,2]
[313112813,1706760643780,-1602.87734198,0.00032,2]
[313112814,1706760643790,-1993.27401172,0.00032003,28]
[313112815,1706760643799,-152.1,0.00032192,2]
[313112816,1706760643808,-209.0,0.00032309,13]
[313112817,1706760643817,-1290.47775034,0.00032315,2]
[313112818,1706760643826,-691.95,0.00032356,2]
[313112819,1706760643835,-341.14,0.00032356,2]
[313112820,1706760643844,-1290.47775034,0.00032388,2]
[313112821,1706760643853,-17765.71558534,0.00032393,4]
[313112822,1706760643863,-945.11,0.00032466,2]
[313112823,1706760643871,-62.18539095,0.000325,2]
[313112824,1706760643896,-140.44152093,0.000325,2]
[313112825,1706760643905,-1000.0,0.000325,2]
[313112826,1706760643917,-156.2925521,0.00032543,2]
[313112827,1706760643927,-167.0,0.00032583,2]
[313112828,1706760643937,-1777.43067888,0.0003267,2]
[313112829,1706760643949,-1222.56932112,0.0003267,2]
[313112830,1706760643958,-20236.30922236,0.00032674,2]
[313112863,1706760646109,-1165.56642154,0.00025554,2]
[313112865,1706760646123,-19109.94887764,0.00032674,2]
[313112867,1706760646133,-151.0201,0.00032748,4]
[313112869,1706760646143,-155.42920267,0.00032772,4]
[313112871,1706760646153,-306.29925579,0.00032772,4]
[313112873,1706760646163,-332.2103845,0.00032772,4]
[313112875,1706760646174,-206.97098071,0.00032772,4]
[313112877,1706760646183,-378.56186681,0.00032772,4]
[313112879,1706760646193,-586.01761731,0.00032772,2]
[313112881,1706760646203,-227.88458652,0.00032772,4]
[313112882,1706760646213,-1374.81657454,0.00032772,4]
[313112883,1706760646222,-204.52799996,0.00032772,4]
[313112885,1706760646232,-397.54034757,0.00032772,4]
[313112886,1706760646242,-5933.09478866,0.00032772,4]
[313112887,1706760646252,-507.12166094,0.00032772,4]
[313112888,1706760646262,-602.55948382,0.00032772,4]
[313112889,1706760646271,-252.04278177,0.00032772,4]
[313112890,1706760646281,-229.61225106,0.00032773,4]
[313112891,1706760646291,-14256.84060468,0.00032773,4]
[313112892,1706760646300,-158.72109327,0.00032794,2]
[313112893,1706760646310,-160.57117106,0.00032797,2]
[313112894,1706760646320,-150.0,0.00032799,2]
[313112895,1706760646330,-132553.36294836,0.000328,2]